bitfinex-derivatives/quotes_BNBF0:USTF0_20250303
["timestamp","ask_amount","ask_price","bid_price","bid_amount"]
[1741016879279,1.23,592.45,592.28,0.26924227]
[1741016880882,1.23,592.45,592.29,0.26924227]
[1741016881183,1.23,592.45,592.3,0.26924227]
[1741016881390,1.23,592.45,592.31,0.26985564]
[1741016881683,1.23,592.45,592.32,0.26985564]
[1741016881883,1.23,592.45,592.33,0.26985564]
[1741016882082,1.23,592.45,592.34,0.26985564]
[1741016882282,1.23,592.45,592.24,0.26985564]
[1741016882485,1.23,592.45,592.25,0.26985564]
[1741016882784,1.23,592.45,592.26,0.26985564]
[1741016882982,1.23,592.45,592.27,0.26978276]
[1741016883187,1.23,592.45,592.24,0.26978276]
[1741016883387,1.23,592.45,592.25,0.26978276]
[1741016883587,1.23,592.45,592.24,0.26978276]
[1741016883791,1.23,592.45,592.25,0.26978276]
[1741016883985,1.23,592.45,592.13,0.26978276]
[1741016884290,1.23,592.45,592.14,0.26978276]
[1741016884484,1.23,592.45,592.12,0.33776937]
[1741016884690,1.23,592.45,592.13,0.27001477]
[1741016884990,1.23,592.45,592.14,0.27001477]
[1741016885192,1.23,592.45,592.15,0.27001477]
[1741016885391,1.23,592.45,592.16,0.27001477]
[1741016885591,1.23,592.45,592.13,0.27001477]
[1741016885792,1.23,592.45,592.14,0.27001477]
[1741016886090,1.23,592.45,592.12,0.33776937]
[1741016886292,1.23,592.45,592.34,1.23920403]
[1741016886491,1.23,592.45,592.35,0.26964606]
[1741016888793,1.23,592.45,592.27,0.26964606]
[1741016888990,1.23,592.45,592.28,0.26964606]
[1741016889194,1.23,592.45,592.27,0.26964606]
[1741016890893,1.23,592.45,592.28,0.27047431]
[1741016891189,1.23,592.45,592.29,0.27047431]
[1741016891394,1.23,592.45,592.3,0.27047431]
[1741016891589,1.23,592.45,592.22,1.23920403]
[1741016891794,1.23,592.45,592.23,0.27051671]
[1741016892597,1.23,592.45,592.22,1.23920403]
[1741016892598,1.23,592.45,592.24,0.2708471]
[1741016892789,1.23,592.45,592.25,0.2708471]
[1741016892988,1.23,592.45,592.26,0.2708471]
[1741016893194,1.23,592.45,592.27,0.2708471]
[1741016893390,1.23,592.45,592.23,0.2708471]
[1741016893594,1.23,592.45,592.24,0.2708471]
[1741016893795,1.23,592.45,592.25,0.2708471]
[1741016893990,1.23,592.45,592.23,0.2708471]
[1741016894189,1.23,592.45,592.24,0.2708471]
[1741016894394,1.23,592.45,592.25,0.2708471]
[1741016894592,1.23,592.45,592.12,0.33776937]
[1741016894593,1.23,592.45,592.26,0.2708471]
[1741016894790,1.23,592.45,592.27,0.2708471]
[1741016895097,1.23,592.45,592.28,0.2708471]
[1741016895298,1.23,592.45,592.13,0.2708471]
[1741016895498,1.23,592.45,592.12,0.33776937]
[1741016895499,1.23,592.45,592.14,0.2708471]
[1741016895691,1.23,592.45,592.15,0.27026813]
[1741016895894,1.23,592.45,592.16,0.27026813]
[1741016896099,1.23,592.45,592.17,0.27026813]
[1741016896293,1.23,592.45,592.22,1.23920403]
[1741016896497,1.23,592.45,592.23,0.27026813]
[1741016898597,1.254,592.47,592.23,0.27026813]
[1741016898902,1.254,592.47,592.24,0.27026813]
[1741016899097,1.254,592.47,592.25,0.27026813]
[1741016899295,1.254,592.47,592.2,0.27026813]
[1741016899494,1.254,592.47,592.21,0.27026813]
[1741016899795,1.254,592.47,592.22,0.27026813]
[1741016899997,1.254,592.47,592.23,0.27026813]
[1741016900198,1.254,592.47,592.19,1.23920403]
[1741016900199,1.254,592.47,592.2,0.27026813]
[1741016900497,1.161,592.49,592.21,0.27053846]
[1741016900694,1.161,592.49,592.2,0.27053846]
[1741016900899,1.161,592.49,592.21,1.50974249]
[1741016901095,1.161,592.49,592.22,0.27053846]
[1741016901901,1.161,592.49,592.23,0.27085227]
[1741016902102,1.161,592.49,592.22,0.27085227]
[1741016902401,1.161,592.49,592.23,0.27085227]
[1741016902596,1.161,592.49,592.22,0.27085227]
[1741016902800,1.161,592.49,592.23,0.27085227]
[1741016903102,1.161,592.49,592.24,0.27085227]
[1741016903303,1.161,592.49,592.22,0.27085227]
[1741016903603,1.161,592.49,592.23,0.27085227]
[1741016903800,1.161,592.49,592.24,0.27085227]
[1741016904000,1.161,592.49,592.18,0.27085227]
[1741016904301,1.161,592.49,592.19,0.27085227]
[1741016904500,1.161,592.49,592.18,0.27085227]
[1741016904704,1.161,592.49,592.19,0.27085227]
[1741016904902,1.161,592.49,592.18,0.27085227]
[1741016905097,1.161,592.49,592.2,0.27085227]
[1741016905305,1.161,592.49,592.21,0.27085227]
[1741016905498,1.161,592.49,592.13,0.27085227]
[1741016905699,1.161,592.49,592.14,0.27085227]
[1741016905899,1.161,592.49,592.13,0.27085227]
[1741016906203,1.161,592.49,592.12,0.33776937]
[1741016910609,1.161,592.49,592.13,0.27067844]
[1741016911302,1.161,592.49,592.12,0.33776937]
[1741016911501,1.161,592.49,592.13,0.27093772]
[1741016911906,1.161,592.49,591.67,0.27093772]
[1741016912103,1.161,592.49,591.68,0.27093772]
[1741016912308,1.161,592.49,591.69,0.27093772]
[1741016912508,1.161,592.49,591.67,0.27093772]
[1741016912706,1.161,592.49,591.68,0.27093772]
[1741016913006,1.161,592.49,591.66,1.23920403]
[1741016913007,1.27031788,592.48,591.69,0.27116485]
[1741016913209,1.27031788,592.48,591.67,0.27116485]
[1741016913405,1.27031788,592.48,591.68,0.27116485]
[1741016913608,1.68841859,592.47,591.69,0.27116485]
[1741016913811,1.68851549,592.46,591.91,1.23920403]
[1741016914006,1.68851549,592.45,591.92,0.27116485]
[1741016914213,1.68851549,592.44,591.92,0.27116485]
[1741016914411,3.30230411,592.45,591.92,0.27116485]
[1741016914612,1.68857234,592.44,591.92,0.27116485]
[1741016914912,3.30230411,592.45,591.92,0.27116485]
[1741016915111,1.27031788,592.43,591.92,0.27116485]
[1741016915709,1.27031788,592.42,591.92,0.27116485]
[1741016916115,1.27031788,592.42,591.93,0.27068971]
[1741016916311,1.27031788,592.42,591.92,0.27068971]
[1741016916513,1.27031788,592.41,591.93,0.27068971]
[1741016916717,1.27031788,592.41,591.94,0.27068971]
[1741016916914,1.27031788,592.41,591.95,0.27068971]
[1741016917115,1.135,592.4,591.48,0.27068971]
[1741016917418,2.40531788,592.4,591.49,0.27068971]
[1741016917615,2.40531788,592.4,591.5,0.33812341]
[1741016917813,2.40531788,592.4,591.51,0.27068971]
[1741016918016,1.444,592.39,591.51,0.27068971]
[1741016918417,1.444,592.39,591.52,0.27068971]
[1741016918613,1.444,592.39,591.53,0.27068971]
[1741016918819,1.444,592.39,591.54,0.27068971]
[1741016919016,1.423,592.38,591.55,0.27068971]
[1741016919220,1.423,592.38,591.56,0.27068971]
[1741016919414,1.423,592.38,591.57,0.27068971]
[1741016919617,1.423,592.38,591.53,0.27068971]
[1741016919819,1.423,592.38,591.54,0.27068971]
[1741016920016,1.423,592.38,591.55,0.60878454]
[1741016920216,1.423,592.38,591.56,0.27068971]
[1741016920521,1.423,592.38,591.57,0.27068971]
[1741016920720,1.423,592.38,591.58,0.27068971]
[1741016920922,1.423,592.38,591.59,0.26997972]
[1741016921222,1.423,592.38,591.6,0.26997972]
[1741016921424,1.423,592.38,591.74,1.23920403]
[1741016921622,1.423,592.38,591.75,0.26997972]
[1741016922518,1.423,592.38,591.74,1.23920403]
[1741016922519,1.423,592.38,591.76,0.26983724]
[1741016922919,1.423,592.38,591.75,0.26983724]
[1741016924022,1.423,592.38,591.59,1.23920403]
[1741016924326,1.423,592.38,591.6,0.26985176]
[1741016924525,1.26549677,592.37,591.6,0.26985176]
[1741016925325,1.423,592.38,591.6,0.26985176]
[1741016926921,1.26459284,592.37,591.56,0.26985176]
[1741016927123,1.26459284,592.37,591.57,0.26985176]
[1741016927322,1.26459284,592.37,591.58,0.26985176]
[1741016927519,1.26459284,592.37,591.59,0.26985176]
[1741016927726,1.26459284,592.37,591.6,0.26985176]
[1741016928026,1.26459284,592.36,591.61,0.26985176]
[1741016928223,1.26459284,592.36,591.56,0.26985176]
[1741016928422,1.26459284,592.36,591.57,0.26985176]
[1741016928623,1.26459284,592.36,591.58,0.27026203]
[1741016928822,1.26459284,592.35,591.56,0.27026203]
[1741016929026,1.68902999,592.34,591.57,0.27026203]
[1741016929224,1.26459284,592.35,591.58,0.27026203]
[1741016929427,1.26459284,592.35,591.55,0.33809483]
[1741016929428,1.68907796,592.34,591.56,0.27026203]
[1741016929722,1.68907796,592.34,591.55,0.33809483]
[1741016929723,3.28655497,592.33,591.57,0.27026203]
[1741016929921,3.28655497,592.33,591.56,0.27026203]
[1741016930124,3.28655497,592.33,591.57,0.27064635]
[1741016930429,1.68910495,592.32,591.58,0.27064635]
[1741016930727,1.68910495,592.32,591.55,0.33809483]
[1741016930728,1.68910495,592.31,591.59,0.27064635]
[1741016930921,1.68910495,592.3,591.56,0.27064635]
[1741016931122,1.68910495,592.29,591.57,0.27064635]
[1741016931323,1.68919826,592.28,591.58,0.27064635]
[1741016931529,1.68920797,592.27,591.56,0.27064635]
[1741016931725,1.68920797,592.26,591.57,0.27064635]
[1741016931927,1.68920797,592.25,591.58,0.27064635]
[1741016932230,1.68920797,592.25,591.55,0.33809483]
[1741016932231,1.68930346,592.24,591.59,0.27064635]
[1741016932528,1.68930346,592.23,591.6,0.27064635]
[1741016932828,3.28655497,592.26,591.61,0.27064635]
[1741016933029,3.28655497,592.26,591.56,0.27064635]
[1741016933231,3.28655497,592.22,591.57,0.27064635]
[1741016933529,3.28655497,592.22,591.56,0.27064635]
[1741016933829,3.28655497,592.22,591.57,0.27064635]
[1741016934029,3.28655497,592.21,591.58,0.27064635]
[1741016934223,3.28655497,592.21,591.56,0.27064635]
[1741016934429,3.28655497,592.21,591.57,0.27064635]
[1741016934629,3.28655497,592.21,591.56,0.27064635]
[1741016934930,3.28655497,592.21,591.57,0.27064635]
[1741016935129,3.28655497,592.2,591.56,0.27064635]
[1741016935329,3.28655497,592.2,591.57,0.27064635]
[1741016935522,3.28655497,592.2,591.58,0.27064635]
[1741016935721,3.28655497,592.2,591.59,0.27064635]
[1741016935928,1.26459284,592.19,591.6,0.27064635]
[1741016936230,3.28151802,592.18,591.55,0.33809483]
[1741016936430,3.28151802,592.18,591.56,0.27124413]
[1741016936827,3.28151802,592.17,591.56,0.27124413]
[1741016937023,1.058,592.3,591.56,0.27124413]
[1741016937227,3.27654337,592.16,591.56,0.27124413]
[1741016937825,3.27654337,592.15,591.56,0.27124413]
[1741016938425,3.27654337,592.14,591.56,0.27124413]
[1741016939235,1.26020899,592.13,591.56,0.27124413]
[1741016939832,1.26020899,592.13,591.57,0.27124413]
[1741016940028,3.27534042,592.12,590.96,0.27124413]
[1741016940229,4.31934042,592.12,590.98,0.33842092]
[1741016940433,4.31934042,592.12,590.99,0.27124413]
[1741016940734,4.31934042,592.12,590.98,0.33842092]
[1741016940936,3.27534042,592.11,590.99,0.27150393]
[1741016941240,1.68973923,592.1,590.99,0.27150393]
[1741016941536,5.64084368,592.09,590.99,0.27150393]
[1741016941736,1.68973923,592.08,590.99,0.27150393]
[1741016941936,1.68973923,592.07,590.99,0.27150393]
[1741016942131,1.68973923,592.06,590.99,0.27150393]
[1741016942330,1.68973923,592.05,591.0,0.33840947]
[1741016942530,1.68973923,592.04,591.01,0.27150393]
[1741016942739,4.3936554,592.03,591.01,0.27150393]
[1741016942938,4.3936554,592.02,591.01,0.27150393]
[1741016943237,4.3936554,592.01,591.02,0.27204277]
[1741016943542,1.68973923,592.0,591.01,0.27204277]
[1741016943739,1.68973923,591.99,591.02,0.27204277]
[1741016943939,1.69015391,591.98,591.01,0.27204277]
[1741016944138,1.69015391,591.97,591.02,0.27204277]
[1741016944340,1.69015391,591.96,591.01,0.27204277]
[1741016944642,1.69015391,591.95,591.02,0.27204277]
[1741016944839,1.69015391,591.94,591.03,0.27204277]
[1741016945040,1.69015391,591.93,591.01,0.27204277]
[1741016945240,1.69015391,591.92,591.02,0.27204277]
[1741016945441,1.69015391,591.91,591.01,0.27204277]
[1741016945643,1.69015391,591.9,591.02,0.27204277]
[1741016945841,1.69015391,591.89,591.02,0.33839802]
[1741016946037,1.69015391,591.88,591.03,0.27204277]
[1741016946342,1.097,591.88,591.03,0.27204277]
[1741016946539,3.27534042,591.87,591.04,0.27203145]
[1741016946735,3.27534042,591.87,591.05,0.27203145]
[1741016946937,3.27534042,591.87,591.06,0.27203145]
[1741016947139,3.27534042,591.87,591.03,0.27203145]
[1741016947343,3.95147881,591.86,591.04,0.27203145]
[1741016947637,3.95147881,591.86,591.05,0.27203145]
[1741016947844,3.27534042,591.85,591.06,0.27203145]
[1741016948038,3.27534042,591.85,591.07,0.27203145]
[1741016948246,1.6905669,591.84,591.03,0.27203145]
[1741016948441,3.27534042,591.85,591.04,0.27203145]
[1741016948643,4.39599296,591.84,591.03,0.27203145]
[1741016948838,5.64241355,591.83,591.04,0.27203145]
[1741016949043,1.69076652,591.82,591.05,0.27203145]
[1741016949239,1.69076652,591.81,591.03,0.27203145]
[1741016949438,1.69076652,591.8,591.04,0.27203145]
[1741016949638,1.69076652,591.79,591.05,0.27203145]
[1741016949838,1.69076652,591.78,591.06,0.27203145]
[1741016950043,1.69076652,591.77,591.07,0.27203145]
[1741016950244,1.69075385,591.76,591.08,0.27203145]
[1741016950447,1.69075385,591.75,591.09,0.27203145]
[1741016950744,3.95164703,591.77,591.1,0.27203145]
[1741016950946,1.69067117,591.76,591.11,0.27203145]
[1741016951242,3.27534042,591.74,591.12,0.27214894]
[1741016951540,3.27534042,591.74,591.13,0.27214894]
[1741016951745,3.27534042,591.74,591.03,0.27214894]
[1741016951947,1.26020899,591.73,591.04,0.27214894]
[1741016952147,1.26020899,591.73,591.03,0.27214894]
[1741016952348,1.26020899,591.73,591.04,0.27214894]
[1741016952549,1.26020899,591.73,591.03,0.27214894]
[1741016952843,3.26650342,591.72,591.04,0.27214894]
[1741016953049,3.26650342,591.72,591.05,0.27214894]
[1741016953248,3.26650342,591.71,591.03,0.27214894]
[1741016953441,3.26650342,591.71,591.04,0.27214894]
[1741016953641,3.26650342,591.71,591.05,0.27214894]
[1741016953847,3.26650342,591.71,591.06,0.27214894]
[1741016954047,1.26020899,591.7,591.03,0.27214894]
[1741016954251,1.26020899,591.7,591.04,0.27214894]
[1741016954450,1.26020899,591.7,591.03,0.27214894]
[1741016954648,1.26020899,591.69,591.04,0.27214894]
[1741016954849,1.26020899,591.69,591.05,0.27214894]
[1741016955046,1.26020899,591.69,591.06,0.27214894]
[1741016955246,1.26020899,591.69,591.03,0.27214894]
[1741016955444,1.26020899,591.68,591.04,0.27214894]
[1741016955751,1.26020899,591.68,591.05,0.27214894]
[1741016955951,1.26020899,591.68,591.06,0.27194669]
[1741016956149,1.26020899,591.68,591.07,0.27194669]
[1741016956351,1.022,591.75,591.08,0.27194669]
[1741016956548,1.022,591.75,591.03,0.27194669]
[1741016956746,1.022,591.75,591.04,0.27194669]
[1741016956952,1.022,591.75,591.05,0.27194669]
[1741016957151,1.022,591.75,591.03,0.27194669]
[1741016957353,1.022,591.75,591.04,0.27194669]
[1741016957552,1.022,591.75,591.05,0.27194669]
[1741016957753,1.022,591.75,591.06,0.27194669]
[1741016957950,1.022,591.75,591.07,0.27194669]
[1741016958153,1.022,591.75,591.08,0.27194669]
[1741016958353,1.022,591.75,591.03,0.27194669]
[1741016958649,1.022,591.75,591.04,0.27194669]
[1741016958855,1.022,591.75,591.05,0.27194669]
[1741016959052,1.022,591.75,591.02,0.33839802]
[1741016959255,1.022,591.75,591.03,0.27137209]
[1741016959556,1.022,591.75,591.04,0.27137209]
[1741016959753,1.022,591.75,591.05,0.27137209]
[1741016959954,1.022,591.75,591.06,0.27137209]
[1741016960149,1.022,591.75,591.07,0.27137209]
[1741016960351,1.022,591.75,591.08,0.27137209]
[1741016960555,1.022,591.75,591.02,0.33839802]
[1741016960753,1.022,591.75,591.03,0.27165366]
[1741016960955,1.022,591.75,591.04,0.27165366]
[1741016961252,1.022,591.75,591.05,0.27165366]
[1741016961457,1.022,591.75,591.06,0.27165366]
[1741016961756,1.022,591.75,591.07,0.61002305]
[1741016961956,1.022,591.75,591.08,0.27165366]
[1741016962255,1.022,591.75,591.09,0.27125611]
[1741016962455,1.022,591.75,591.08,0.27125611]
[1741016962650,1.022,591.75,591.09,0.27125611]
[1741016962857,1.022,591.75,591.08,0.27125611]
[1741016963055,1.022,591.75,591.1,0.27125611]
[1741016963255,1.022,591.75,591.11,0.27125611]
[1741016963455,1.022,591.75,591.12,0.27125611]
[1741016963651,1.022,591.75,591.07,0.33836939]
[1741016963652,1.022,591.75,591.13,0.27125611]
[1741016963856,1.022,591.75,591.14,0.27125611]
[1741016964056,1.022,591.75,591.15,0.27125611]
[1741016964359,1.022,591.75,591.16,0.27125611]
[1741016964558,1.022,591.75,591.17,0.27125611]
[1741016964757,1.022,591.75,591.18,0.27125611]
[1741016964957,1.022,591.75,591.19,0.27125611]
[1741016965256,1.022,591.75,591.07,0.33836939]
[1741016965457,1.022,591.75,591.08,0.27117862]
[1741016966059,1.022,591.75,591.09,0.27117862]
[1741016966259,1.022,591.75,591.1,0.27117862]
[1741016966459,1.022,591.75,591.11,0.60952512]
[1741016966657,1.022,591.75,591.12,0.27117862]
[1741016967061,1.022,591.75,591.13,0.27117862]
[1741016967462,1.022,591.75,591.11,0.3383465]
[1741016967463,1.022,591.75,591.14,0.27117862]
[1741016967662,1.022,591.75,591.15,0.27117862]
[1741016967862,1.022,591.75,591.16,0.27117862]
[1741016968057,1.022,591.75,591.17,0.27117862]
[1741016968262,1.022,591.75,591.18,0.27117862]
[1741016968461,1.022,591.75,591.19,0.27117862]
[1741016968657,1.022,591.75,591.2,0.27117862]
[1741016968863,1.022,591.75,591.21,0.27117862]
[1741016969165,1.022,591.75,591.22,0.27117862]
[1741016969464,1.022,591.75,591.23,0.27117862]
[1741016969657,1.022,591.75,591.24,0.27117862]
[1741016969857,1.022,591.75,591.25,0.609445]
[1741016970061,1.022,591.75,591.26,0.60966974]
[1741016970257,1.022,591.75,591.27,0.27140908]
[1741016970463,1.121,591.74,591.28,0.27140908]
[1741016970663,1.121,591.74,591.29,0.27140908]
[1741016970858,1.121,591.74,591.3,0.27140908]
[1741016971060,1.121,591.74,591.31,0.60964114]
[1741016971363,1.121,591.74,591.32,0.27140908]
[1741016971564,0.899,591.73,591.31,0.33823206]
[1741016971766,0.899,591.73,591.32,0.27127221]
[1741016972160,0.899,591.73,591.33,0.60949283]
[1741016972357,0.899,591.73,591.34,0.27127221]
[1741016972563,0.929,591.72,591.35,0.27127221]
[1741016972868,0.929,591.72,591.36,0.27127221]
[1741016973064,0.929,591.72,591.37,0.27127221]
[1741016973361,0.929,591.72,591.38,0.27127221]
[1741016973662,0.929,591.72,591.39,0.60945851]
[1741016973863,0.929,591.72,591.4,0.60945279]
[1741016974059,0.929,591.72,591.41,0.60944708]
[1741016974365,0.929,591.72,591.42,0.60944136]
[1741016974569,0.929,591.72,591.43,0.60943564]
[1741016974866,0.929,591.72,591.44,0.60955429]
[1741016975062,0.929,591.72,591.45,0.60954857]
[1741016975267,0.929,591.72,591.46,0.60954286]
[1741016975562,0.929,591.72,591.47,0.60953714]
[1741016975769,0.929,591.72,591.48,0.60953142]
[1741016975961,0.929,591.72,591.49,0.60952571]
[1741016976161,0.929,591.72,591.5,0.27139658]
[1741016976770,0.929,591.72,591.51,0.33811769]
[1741016976965,0.929,591.72,591.52,0.27139658]
[1741016977172,0.929,591.72,591.53,0.33810626]
[1741016977372,0.929,591.72,591.54,0.27139658]
[1741016977571,0.929,591.72,591.55,0.33809483]
[1741016977969,0.929,591.72,591.56,0.27146636]
[1741016978167,0.929,591.72,591.57,0.3380834]
[1741016978367,0.929,591.72,591.58,0.27146636]
[1741016978570,0.929,591.72,591.59,0.33807197]
[1741016978770,0.929,591.72,591.6,0.27146636]
[1741016978967,0.929,591.72,591.61,0.33806054]
[1741016979171,0.929,591.72,591.62,0.27146636]
[1741016979573,0.929,591.72,591.63,0.60951547]
[1741016979773,0.929,591.72,591.64,0.60950976]
[1741016979972,0.929,591.72,591.65,0.60950405]
[1741016980175,0.929,591.72,591.66,0.60949833]
[1741016980474,0.929,591.72,591.67,0.60949262]
[1741016980676,0.929,591.72,591.68,0.60948691]
[1741016980874,0.929,591.72,591.69,0.60948119]
[1741016981071,0.929,591.72,591.7,0.60947548]
[1741016981275,0.929,591.72,591.71,0.60946977]
[1741016982572,0.929,591.72,591.71,0.60924135]
[1741016984072,0.929,591.72,591.71,0.33800341]
[1741016984273,0.929,591.72,591.71,0.60941727]
[1741016985579,0.929,591.72,591.71,0.33800341]
[1741016985881,0.929,591.72,591.71,0.6096136]
[1741016987373,0.929,591.72,591.71,0.33800341]
[1741016987573,0.929,591.72,591.71,0.609592]
[1741016989076,0.929,591.72,591.71,0.60950668]
[1741016990577,0.929,591.72,591.71,0.60938299]
[1741017002697,1.022,591.75,591.71,0.60938299]
[1741017002893,1.022,591.75,591.72,0.27137958]
[1741017003196,1.022,591.75,591.73,0.33799198]
[1741017003391,1.022,591.75,591.74,0.27137958]
[1741017003593,1.022,591.75,591.74,0.27045144]
[1741017004198,1.022,591.75,591.73,0.33799198]
[1741017004390,1.022,591.75,591.74,0.27016901]
[1741017004696,1.022,591.75,591.74,0.60815528]
[1741017007395,2.132,591.99,591.74,0.60815528]
[1741017007597,2.132,591.99,591.75,0.27016901]
[1741017007797,2.132,591.99,591.76,0.33797485]
[1741017008099,2.132,591.99,591.77,0.27016901]
[1741017009601,2.132,591.99,591.78,0.27016901]
[1741017009799,2.132,591.99,591.79,0.27016901]
[1741017009998,2.132,591.99,591.8,0.27016901]
[1741017010195,2.132,591.99,591.81,0.27016901]
[1741017010403,2.132,591.99,591.82,0.27016901]
[1741017010596,2.132,591.99,591.83,0.27016901]
[1741017010795,2.132,591.99,591.84,0.27016901]
[1741017010994,2.132,591.99,591.85,0.27016901]
[1741017011195,2.132,591.99,591.86,0.27016901]
[1741017011393,2.132,591.99,591.87,0.27016901]
[1741017011598,2.132,591.99,591.88,0.60807534]
[1741017011798,1.183,591.99,591.89,0.60806963]
[1741017011994,1.183,591.99,591.9,0.27016901]
[1741017012302,1.183,591.99,591.91,0.27016901]
[1741017012499,1.183,591.99,591.92,0.27016901]
[1741017012700,1.183,591.99,591.95,1.24707395]
[1741017012901,1.183,591.99,591.96,0.27016901]
[1741017013103,1.183,591.99,591.97,0.27016901]
[1741017013304,1.183,591.99,591.98,0.27016901]
[1741017014899,1.183,591.99,591.96,0.27016901]
[1741017015203,1.183,591.99,591.97,0.27016901]
[1741017015398,1.183,591.99,591.98,0.27016901]
[1741017016202,1.183,591.99,591.94,0.27016901]
[1741017016601,1.503,592.02,591.94,0.27016901]
[1741017018200,1.503,592.02,591.95,0.27016901]
[1741017018402,1.503,592.02,591.9,0.27016901]
[1741017018602,1.503,592.02,591.91,0.27016901]
[1741017018904,1.503,592.02,591.92,0.27016901]
[1741017019208,1.503,592.02,591.93,0.27016901]
[1741017019507,1.503,592.02,591.94,0.27016901]
[1741017019800,1.503,592.02,591.95,0.27016901]
[1741017020001,1.503,592.02,591.9,0.27016901]
[1741017020309,1.503,592.02,591.91,0.27016901]
[1741017020503,1.503,592.02,591.92,0.27016901]
[1741017020707,1.503,592.02,591.9,0.27016901]
[1741017021006,1.503,592.02,591.91,0.27016901]
[1741017021308,1.503,592.02,591.92,0.27016901]
[1741017021501,1.503,592.02,591.89,0.33790062]
[1741017021701,1.503,592.02,591.9,0.26943571]
[1741017021903,1.503,592.02,591.91,0.3378892]
[1741017022104,1.503,592.02,591.92,0.26943571]
[1741017022306,1.503,592.02,591.93,0.33787778]
[1741017022502,1.503,592.02,591.94,0.26943571]
[1741017022803,1.503,592.02,591.95,0.33786637]
[1741017023007,1.503,592.02,591.96,0.26943571]
[1741017024505,1.503,592.02,591.97,0.33785495]
[1741017024702,1.503,592.02,591.98,0.26907974]
[1741017024906,1.503,592.02,591.99,0.33784354]
[1741017025105,1.503,592.02,592.0,0.26907974]
[1741017025301,1.503,592.02,592.01,0.33783213]
[1741017025506,1.503,592.02,592.01,0.60691187]
[1741017025703,1.503,592.02,592.01,0.33783213]
[1741017029410,1.503,592.02,592.01,0.87696277]
[1741017029611,1.503,592.02,592.01,0.26956518]
[1741017032015,1.237,592.05,592.01,0.26956518]
[1741017042527,1.174,592.21,592.01,0.26956518]
[1741017044327,1.25702615,592.2,592.01,0.26956518]
[1741017045329,1.25702615,592.19,592.01,0.26956518]
[1741017046122,3.2671409,592.18,592.01,0.26956518]
[1741017046828,3.2671409,592.17,592.01,0.26956518]
[1741017047827,1.25702615,592.16,592.01,0.26956518]
[1741017048628,3.26579671,592.15,592.01,0.26956518]
[1741017049230,3.26579671,592.14,592.01,0.26956518]
[1741017049829,1.25702615,592.13,592.01,0.26956518]
[1741017050430,1.25702615,592.12,592.01,0.26956518]
[1741017051225,3.26389401,592.11,592.01,0.26956518]
[1741017052628,1.25702615,592.1,592.01,0.26956518]
[1741017053335,4.39273643,592.26,592.01,0.26956518]
[1741017053536,1.68951401,592.25,592.01,0.26956518]
[1741017053834,4.39271207,592.24,592.01,0.26956518]
[1741017054034,1.25349878,592.09,592.01,0.26956518]
[1741017054531,3.25795594,592.08,592.01,0.26956518]
[1741017055737,1.25349878,592.07,592.01,0.26956518]
[1741017056640,1.25349878,592.06,592.01,0.26956518]
[1741017057332,0.67574434,592.24,592.01,0.26956518]
[1741017057938,3.25442187,592.23,592.01,0.26956518]
[1741017058338,3.25442187,592.22,592.01,0.26956518]
[1741017059541,3.25442187,592.21,592.01,0.26956518]
[1741017060537,3.25442187,592.2,592.01,0.26956518]
[1741017061237,3.25442187,592.19,592.01,0.26956518]
[1741017062141,3.25442187,592.18,592.01,0.26956518]
[1741017062641,1.25170072,592.17,592.01,0.26956518]
[1741017063444,5.186,592.29,592.01,0.26956518]
[1741017064349,3.25208851,592.28,592.01,0.26956518]
[1741017065349,5.186,592.29,592.01,0.26956518]
[1741017065648,5.186,592.29,592.02,0.26928717]
[1741017066045,1.65839102,592.72,592.02,0.26928717]
[1741017066251,1.68818859,592.71,592.02,0.26928717]
[1741017066453,1.65839102,592.76,592.02,0.26928717]
[1741017066652,1.68802605,592.75,592.02,0.26928717]
[1741017066951,1.68802605,592.74,592.02,0.26928717]
[1741017067147,1.65839102,592.76,592.02,0.26928717]
[1741017067353,1.366,592.73,592.01,0.26956518]
[1741017068248,1.366,592.73,592.02,0.26899052]
[1741017068647,3.25187686,592.72,592.02,0.26899052]